fUSD/lending_fUSD_20250607
["ID","MTS","AMOUNT","RATE_DAILY","PERIOD"]
[364898815,1749286269358,-1000.0,0.00033701,7]
[364898816,1749286269368,-1000.0,0.00033701,7]
[364898817,1749286269378,-500.0,0.00033728,2]
[364898818,1749286269388,-500.0,0.00033756,2]
[364898819,1749286269398,-150.0,0.00033775,2]
[364898820,1749286269409,-150.0,0.00033775,2]
[364898821,1749286269419,-573.52530558,0.00033783,2]
[364898822,1749286269429,-1000.0,0.00033784,31]
[364898823,1749286269440,-1000.0,0.000338,7]
[364898824,1749286269450,-150.0,0.00033801,2]
[364898825,1749286269460,-371.33366359,0.00033801,2]
[364898826,1749286269471,-300.58,0.00033829,2]
[364898827,1749286269481,-500.0,0.00033831,2]
[364898828,1749286269492,-500.0,0.00033831,2]
[364898829,1749286269502,-4655.34628196,0.00033831,29]
[364898830,1749286269513,-150.0,0.00033833,2]
[364898831,1749286269524,-500.0,0.00033835,30]
[364898832,1749286269534,-500.0,0.00033835,30]
[364898833,1749286269543,-500.0,0.00033835,30]
[364898834,1749286269554,-500.0,0.00033835,30]
[364898835,1749286269564,-500.0,0.00033835,30]
[364898836,1749286269574,-500.0,0.00033835,30]
[364898837,1749286269584,-500.0,0.00033835,30]
[364898838,1749286269594,-500.0,0.00033835,30]
[364898839,1749286269604,-500.0,0.00033835,30]
[364898840,1749286269614,-500.0,0.00033835,30]
[364898841,1749286269625,-500.0,0.00033835,30]
[364898842,1749286269635,-500.0,0.00033835,30]
[364898843,1749286269646,-500.0,0.00033835,30]
[364898844,1749286269656,-619.12974104,0.00033835,30]
[364898845,1749286269667,-500.0,0.00033835,30]
[364898846,1749286269678,-500.0,0.00033835,30]
[364898847,1749286269687,-213.78423662,0.00033835,30]
[364898848,1749286269697,-16000.0,0.00033835,2]
[364898849,1749286269707,-1000.0,0.00033838,7]
[364898850,1749286269717,-1000.0,0.00033838,7]
[364898851,1749286269727,-1000.0,0.00033838,7]
[364898852,1749286269737,-1000.0,0.00033838,7]
[364898853,1749286269747,-1000.0,0.00033838,7]
[364898854,1749286269756,-153.23858538,0.00033872,2]
[364898855,1749286269780,-1008.44077941,0.00033875,6]
[364898856,1749286269791,-150.0,0.00033886,2]
[364898857,1749286269801,-150.0,0.00033906,2]
[364898858,1749286269811,-1000.0,0.00033955,2]
[364898859,1749286269822,-150.0,0.00033963,2]
[364898860,1749286269833,-500.0,0.00033972,9]
[364898861,1749286269845,-1000.0,0.00033975,7]
[364898862,1749286269856,-1000.0,0.00033975,7]
[364898863,1749286269867,-1000.0,0.00033975,7]
[364898864,1749286269877,-1000.0,0.00033975,7]
[364898865,1749286269888,-1000.0,0.00033975,7]
[364898866,1749286269898,-1000.0,0.00033975,7]
[364898867,1749286269909,-1000.0,0.00033997,2]
[364898868,1749286269919,-50000.0,0.00034,24]
[364898869,1749286269929,-976.96,0.00034,2]
[364898870,1749286269940,-1800.0,0.00034,35]
[364898871,1749286269950,-1002.64253987,0.00034,2]
[364898872,1749286269961,-4000.0,0.00034,90]
[364898873,1749286269971,-1370.0,0.00034,5]
[364898874,1749286269981,-1370.0,0.00034,5]
[364898875,1749286269992,-1370.0,0.00034,5]
[364898876,1749286270002,-1370.0,0.00034,5]
[364898877,1749286270013,-1370.0,0.00034,5]
[364898878,1749286270024,-400.0,0.00034,30]
[364898879,1749286270034,-1876.73299216,0.00034,2]
[364898880,1749286270045,-160.0,0.00034,30]
[364898881,1749286270056,-17407.82,0.00034,14]
[364898882,1749286270066,-160.0,0.00034,30]
[364898883,1749286270077,-4000.0,0.00034,4]
[364898884,1749286270087,-988.0,0.00034,2]
[364898885,1749286270097,-152.0,0.0003405,7]
[364898886,1749286270108,-1000.0,0.00034069,2]
[364898887,1749286270118,-5000.0,0.00034099,2]
[364898888,1749286270128,-5000.0,0.00034099,3]
[364898889,1749286270139,-4396.03790704,0.00034099,4]
[364898890,1749286270150,-78295.8850167,0.000341,2]
[364898891,1749286270161,-151.0,0.000341,7]
[364898892,1749286270171,-151.0,0.000341,7]
[364898893,1749286270181,-171.882811,0.000341,7]
[364898894,1749286270192,-171.882811,0.000341,7]
[364898895,1749286270208,-151.0,0.000341,7]
[364898896,1749286270220,-151.0,0.000341,7]
[364898897,1749286270230,-151.0,0.000341,7]
[364898898,1749286270241,-151.0,0.000341,7]
[364898899,1749286270253,-572.91785,0.000341,7]
[364898900,1749286270263,-151.0,0.000341,7]
[364898901,1749286270278,-572.91785,0.000341,7]
[364898902,1749286270288,-151.0,0.000341,7]
[364898903,1749286270298,-151.0,0.000341,7]
[364898904,1749286270308,-207.852747,0.000341,7]
[364898905,1749286270320,-207.852747,0.000341,7]
[364898906,1749286270330,-151.0,0.000341,7]
[364898907,1749286270341,-1000.0,0.00034112,7]
[364898908,1749286270351,-1000.0,0.00034112,7]
[364898909,1749286270362,-1000.0,0.00034112,7]
[364898910,1749286270373,-1000.0,0.00034112,7]
[364898911,1749286270383,-1000.0,0.00034112,7]
[364898912,1749286270394,-1000.0,0.00034112,7]
[364898913,1749286270405,-1000.0,0.00034112,7]
[364898914,1749286270415,-150.0,0.00034115,2]
[364898915,1749286270426,-2110.0,0.00034116,2]
[364898916,1749286270436,-150.0,0.00034148,2]
[364898917,1749286270446,-496.24951471,0.0003415,2]
[364898918,1749286270456,-1000.0,0.00034185,2]
[364898919,1749286270466,-150.0,0.00034246,2]
[364898920,1749286270477,-1000.0,0.00034249,7]
[364898921,1749286270488,-1000.0,0.00034249,7]
[364898922,1749286270498,-1000.0,0.00034249,7]
[364898923,1749286270508,-1000.0,0.00034249,7]
[364898924,1749286270519,-1000.0,0.00034249,7]
[364898925,1749286270529,-1000.0,0.00034249,7]
[364898926,1749286270539,-1000.0,0.00034249,7]
[364898927,1749286270549,-1000.0,0.00034249,7]
[364898928,1749286270559,-1000.0,0.00034249,7]
[364898929,1749286270569,-1000.0,0.00034249,7]
[364898930,1749286270580,-1000.0,0.00034249,7]
[364898931,1749286270591,-1000.0,0.00034266,2]
[364898932,1749286270601,-150.0,0.00034269,2]
[364898933,1749286270611,-500.0,0.00034296,60]
[364898934,1749286270621,-150.0,0.00034306,2]
[364898935,1749286270632,-150.0,0.00034359,2]
[364898936,1749286270643,-150.0,0.00034364,2]
[364898937,1749286270653,-150.0,0.00034374,2]
[364898938,1749286270669,-150.0,0.00034387,2]
[364898939,1749286270679,-181705.03,0.000344,14]
[364898940,1749286270689,-150.0,0.00034421,2]
[364898941,1749286270700,-150.0,0.00034431,2]
[364898942,1749286270711,-1000.0,0.00034434,2]
[364898943,1749286270721,-150.0,0.00034435,2]
[364898944,1749286270732,-1000.0,0.00034449,2]
[364898945,1749286270742,-150.0,0.00034461,2]
[364898946,1749286270753,-150.0,0.00034475,2]
[364898947,1749286270763,-187.78006525,0.00034476,2]
[364898948,1749286270774,-257.91778498,0.00034476,2]
[364898949,1749286270785,-887.631,0.00034479,2]
[364898950,1749286270795,-150.0,0.00034494,2]
[364898951,1749286270805,-527.12039358,0.000345,2]
[364898952,1749286270817,-168.0,0.00034512,2]
[364898953,1749286270829,-168.0,0.00034512,7]
[364898954,1749286270840,-168.0,0.00034512,2]
[364898955,1749286270850,-168.0,0.00034513,2]
[364898956,1749286270860,-168.0,0.00034513,2]
[364898957,1749286270872,-168.0,0.00034513,2]
[364898958,1749286270883,-168.0,0.00034513,2]
[364898959,1749286270894,-168.0,0.00034513,2]
[364898960,1749286270905,-168.0,0.00034514,120]
[364898961,1749286270915,-168.0,0.00034514,7]
[364898962,1749286270925,-168.0,0.00034514,7]
[364898963,1749286270935,-168.0,0.00034515,2]
[364898964,1749286270946,-168.0,0.00034515,7]
[364898965,1749286270957,-168.0,0.00034515,2]
[364898966,1749286270967,-168.0,0.00034515,2]
[364898967,1749286270978,-168.0,0.00034515,2]
[364898968,1749286270989,-500.0,0.0003452,10]
[364898969,1749286271000,-279.0,0.00034521,30]
[364898970,1749286271011,-155.0,0.00034521,30]
[364898971,1749286271022,-158.98309356,0.00034543,6]
[364898972,1749286271033,-944.0,0.00034543,2]
[364898973,1749286271044,-1116.0,0.00034543,2]
[364898974,1749286271055,-801.0,0.00034543,2]
[364898975,1749286271065,-636.0,0.00034543,2]
[364898976,1749286271076,-1274.0,0.00034543,2]
[364898977,1749286271088,-589.0,0.00034543,2]
[364898978,1749286271100,-557.0,0.00034543,2]
[364898979,1749286271111,-926.0,0.00034543,2]
[364898980,1749286271122,-2000.0,0.00034543,2]
[364898981,1749286271133,-1255.0,0.00034543,2]
[364898982,1749286271143,-6198.901,0.00034543,2]
[364898983,1749286271153,-155.0,0.00034543,2]
[364898984,1749286271163,-245.98648876,0.00034565,2]
[364898985,1749286271174,-1000.0,0.00034569,2]
[364898986,1749286271184,-150.0,0.00034577,2]
[364898987,1749286271194,-4655.34628196,0.0003459,31]
[364898988,1749286271203,-345.65,0.000346,14]
[364898989,1749286271215,-345.6452,0.000346,14]
[364898990,1749286271225,-150.0,0.00034607,2]
[364898991,1749286271235,-150.0,0.00034614,2]
[364898992,1749286271245,-2110.0,0.00034616,2]
[364898993,1749286271255,-150.0,0.00034619,2]
[364898994,1749286271265,-150.0,0.00034621,2]
[364898995,1749286271280,-150.0,0.00034625,2]
[364898996,1749286271290,-150.0,0.00034629,2]
[364898997,1749286271300,-150.0,0.00034691,2]
[364898998,1749286271310,-150.0,0.00034694,2]
[364898999,1749286271322,-150.0,0.00034697,2]
[364899000,1749286271332,-150.0,0.00034698,2]
[364899001,1749286271342,-150.0,0.00034722,2]
[364899002,1749286271353,-150.0,0.0003473,2]
[364899003,1749286271363,-150.0,0.0003473,2]
[364899004,1749286271373,-150.0,0.00034735,120]
[364899005,1749286271384,-150.0,0.00034748,2]
[364899006,1749286271394,-150.0,0.00034749,2]
[364899007,1749286271404,-150.0,0.0003475,2]
[364899008,1749286271414,-150.0,0.00034755,2]
[364899009,1749286271424,-150.0,0.00034775,2]
[364899010,1749286271435,-17407.82,0.000348,14]
[364899011,1749286271446,-2000.0,0.000348,2]
[364899012,1749286271457,-2868.0,0.00034807,2]
[364899013,1749286271468,-1000.0,0.0003481,2]
[364899014,1749286271478,-150.0,0.00034817,2]
[364899015,1749286271487,-150.0,0.00034828,2]
[364899016,1749286271498,-150.0,0.0003484,2]
[364899017,1749286271508,-150.0,0.00034848,2]
[364899018,1749286271518,-150.0,0.00034848,2]
[364899019,1749286271529,-150.0,0.00034853,2]
[364899020,1749286271539,-150.0,0.00034865,2]
[364899021,1749286271548,-150.0,0.00034868,2]
[364899022,1749286271559,-23844.94517277,0.0003489,14]
[364899023,1749286271569,-1000.0,0.00034892,2]
[364899024,1749286271580,-150.0,0.00034896,2]
[364899025,1749286271590,-1000.0,0.000349,30]
[364899026,1749286271599,-1000.0,0.00034903,2]
[364899027,1749286271609,-3569.9335084,0.00034907,2]
[364899028,1749286271619,-150.0,0.00034907,2]
[364899029,1749286271629,-150.0,0.00034919,2]
[364899030,1749286271639,-150.0,0.0003494,2]
[364899031,1749286271649,-150.0,0.00034944,2]
[364899032,1749286271659,-150.0,0.00034953,2]
[364899033,1749286271669,-150.0,0.00034966,2]
[364899034,1749286271678,-150.0,0.00034988,2]
[364899035,1749286271689,-1612.81,0.0003499,2]
[364899036,1749286271699,-150.0,0.00034996,2]
[364899037,1749286271709,-1201.09848307,0.00035,2]
[364899038,1749286271719,-228.80803343,0.00035,2]
[364899039,1749286271729,-3000.0,0.00035,2]
[364899040,1749286271739,-3000.0,0.00035,2]
[364899041,1749286271749,-3000.0,0.00035,2]
[364899042,1749286271759,-3000.0,0.00035,2]
[364899043,1749286271769,-3000.0,0.00035,2]
[364899044,1749286271778,-1766.1,0.00035,2]
[364899045,1749286271788,-1800.0,0.00035,36]
[364899046,1749286271799,-5000.0,0.00035,7]
[364899047,1749286271808,-5000.0,0.00035,9]
[364899048,1749286271819,-5000.0,0.00035,14]
[364899049,1749286271831,-4446.78744835,0.00035,2]
[364899050,1749286272065,-14532.70751695,0.00035,30]
[364899051,1749286272077,-1000.0,0.00035,2]
[364899052,1749286272088,-200.0,0.00035,2]
[364899053,1749286272099,-5275.0,0.00035,30]
[364899054,1749286272109,-243.15,0.00035,2]
[364899055,1749286272119,-345.65,0.00035,14]
[364899056,1749286272129,-8482.0502766,0.00035,7]
[364899057,1749286272140,-400.0,0.00035,30]
[364899058,1749286272150,-240.68597825,0.00035,30]
[364899059,1749286272159,-160.0,0.00035,30]
[364899060,1749286272169,-160.0,0.00035,30]
[364899061,1749286272180,-151.0,0.00035,7]
[364899063,1749286272190,-151.0,0.00035,7]
[364899064,1749286272200,-426.267147,0.00035,7]
[364899066,1749286272210,-426.267147,0.00035,7]
[364899067,1749286272220,-151.0,0.00035,7]
[364899068,1749286272230,-151.0,0.00035,7]
[364899070,1749286272239,-622.36247,0.00035,7]
[364899071,1749286272249,-176.58242445,0.00035,7]
[364899073,1749286272259,-22882.29854103,0.00035,2]
[364899074,1749286272272,-845.97028355,0.00035,30]
[364899075,1749286272282,-22503.72703652,0.00035,2]
[364899077,1749286272291,-2000.0,0.00035,5]
[364899078,1749286272301,-3658.94763809,0.00035,20]
[364899080,1749286272311,-302.0,0.00035,30]
[364899081,1749286272321,-150.0,0.00035016,2]
[364899083,1749286272331,-150.0,0.00035017,2]
[364899084,1749286272341,-150.0,0.00035021,2]
[364899085,1749286272352,-460.17,0.00035032,2]
[364899087,1749286272362,-150.0,0.00035042,2]
[364899088,1749286272372,-150.0,0.00035047,2]
[364899090,1749286272382,-150.0,0.00035061,2]
[364899091,1749286272391,-150.0,0.00035065,2]
[364899093,1749286272402,-276.27,0.00035068,2]
[364899094,1749286272411,-500.0,0.00035068,11]
[364899095,1749286272421,-349.36,0.00035068,2]
[364899097,1749286272430,-150.0,0.00035076,2]
[364899098,1749286272440,-150.0,0.00035083,2]
[364899100,1749286272449,-150.0,0.00035092,2]
[364899101,1749286272459,-150.0,0.00035093,2]
[364899102,1749286272469,-1000.0,0.0003511,2]
[364899104,1749286272479,-2110.0,0.00035116,2]
[364899105,1749286272489,-150.0,0.00035124,2]
[364899107,1749286272499,-150.0,0.00035129,2]
[364899108,1749286272509,-1000.0,0.00035134,2]
[364899109,1749286272519,-150.0,0.00035138,2]
[364899111,1749286272530,-205.0,0.00035146,2]
[364899112,1749286272540,-205.0,0.00035146,2]
[364899114,1749286272549,-150.0,0.00035153,2]
[364899115,1749286272559,-150.0,0.00035159,2]
[364899117,1749286272569,-150.0,0.00035161,2]
[364899118,1749286272579,-150.0,0.00035188,2]
[364899119,1749286272589,-1000.0,0.00035193,2]
[364899121,1749286272599,-150.0,0.00035209,2]
[364899122,1749286272609,-150.0,0.00035217,2]
[364899124,1749286272619,-150.0,0.00035223,2]
[364899125,1749286272629,-150.0,0.00035233,2]
[364899127,1749286272639,-150.0,0.0003524,2]
[364899128,1749286272648,-150.0,0.00035255,2]
[364899129,1749286272658,-3576.16795,0.0003526,2]
[364899131,1749286272669,-150.0,0.00035269,2]
[364899132,1749286272679,-150.0,0.00035292,2]
[364899134,1749286272688,-6021.16,0.000353,7]
[364899135,1749286272698,-1000.0,0.0003531,2]
[364899137,1749286272708,-150.0,0.00035319,2]
[364899138,1749286272717,-150.0,0.00035328,2]
[364899139,1749286272728,-150.0,0.0003533,2]
[364899141,1749286272738,-16248.5055853,0.00035333,2]
[364899142,1749286272748,-150.0,0.00035335,2]
[364899144,1749286272758,-1000.0,0.00035337,2]
[364899145,1749286272767,-150.0,0.0003534,2]
[364899146,1749286272777,-150.0,0.00035343,2]
[364899148,1749286272786,-4655.34628196,0.00035348,32]
[364899149,1749286272797,-1000.0,0.00035363,2]
[364899151,1749286272807,-150.0,0.00035371,2]
[364899152,1749286272817,-150.0,0.00035377,120]
[364899154,1749286272827,-150.0,0.00035379,2]
[364899155,1749286272837,-150.0,0.00035382,2]
[364899156,1749286272847,-500.0,0.00035392,60]
[364899158,1749286272857,-150.0,0.00035392,2]
[364899159,1749286272867,-150.0,0.00035402,2]
[364899161,1749286272877,-150.0,0.00035423,2]
[364899162,1749286272887,-221.17571797,0.00035423,30]
[364899164,1749286272896,-330.36313399,0.00035423,30]
[364899165,1749286272906,-150.0,0.00035426,2]
[364899167,1749286272915,-150.0,0.00035433,2]
[364899168,1749286272925,-150.0,0.00035433,2]
[364899169,1749286272934,-150.0,0.00035433,2]
[364899171,1749286272944,-150.0,0.00035433,2]
[364899172,1749286272954,-1073.34290267,0.00035436,2]
[364899174,1749286272963,-155.0,0.00035441,30]
[364899175,1749286272973,-169.30752592,0.00035442,2]
[364899177,1749286272982,-150.0,0.00035448,2]
[364899178,1749286272991,-150.0,0.0003545,2]
[364899179,1749286273001,-817.50445255,0.00035452,2]
[364899181,1749286273011,-1000.0,0.00035476,2]
[364899182,1749286273021,-3337.26753102,0.000355,12]
[364899184,1749286273031,-5200.65769999,0.000355,10]
[364899185,1749286273040,-345.65,0.000355,14]
[364899187,1749286273050,-1409.11819041,0.000355,30]
[364899188,1749286273060,-150.0,0.000355,2]
[364899189,1749286273070,-150.0,0.00035501,2]
[364899191,1749286273081,-909.90140433,0.00035505,2]
[364899192,1749286273091,-150.0,0.00035506,2]
[364899194,1749286273102,-150.0,0.00035512,2]
[364899195,1749286273112,-150.0,0.00035528,2]
[364899197,1749286273127,-150.0,0.0003553,2]
[364899198,1749286273137,-150.0,0.00035534,2]
[364899199,1749286273147,-150.0,0.00035546,2]
[364899201,1749286273156,-1008.44077941,0.0003555,8]
[364899202,1749286273165,-150.0,0.00035554,2]
[364899203,1749286273175,-150.0,0.00035573,2]
[364899205,1749286273185,-150.0,0.00035574,2]
[364899206,1749286273194,-150.0,0.00035574,2]
[364899208,1749286273204,-1000.0,0.00035576,2]
[364899209,1749286273214,-150.0,0.00035581,2]
[364899211,1749286273224,-794.12,0.00035584,2]
[364899212,1749286273235,-150.0,0.00035588,2]
[364899213,1749286273246,-184.4371517,0.00035592,2]
[364899215,1749286273256,-2777.146981,0.00035592,2]
[364899216,1749286273265,-1024.76347132,0.000356,7]
[364899218,1749286273279,-17407.82,0.000356,14]
[364899219,1749286273289,-150.0,0.00035601,2]
[364899221,1749286273299,-150.0,0.00035604,2]
[364899222,1749286273308,-150.0,0.00035605,2]
[364899223,1749286273318,-200.24498517,0.00035606,14]
[364899225,1749286273328,-5023.12082136,0.0003561,2]
[364899226,1749286273339,-150.0,0.00035611,2]
[364899227,1749286273350,-2000.0,0.00035614,60]
[364899229,1749286273361,-500.0,0.00035614,120]
[364899230,1749286273370,-1735.47,0.00035616,7]
[364899232,1749286273380,-1023.0,0.00035616,8]
[364899233,1749286273390,-600.0,0.00035616,14]
[364899234,1749286273399,-700.0,0.00035616,16]
[364899236,1749286273409,-700.0,0.00035616,20]
[364899237,1749286273418,-1000.0,0.00035616,30]
[364899239,1749286273427,-1000.0,0.00035616,30]
[364899240,1749286273437,-151.0,0.00035616,7]
[364899241,1749286273446,-151.0,0.00035616,7]
[364899243,1749286273455,-151.0,0.00035616,7]
[364899244,1749286273465,-151.0,0.00035616,7]
[364899245,1749286273475,-151.0,0.00035616,7]
[364899247,1749286273484,-151.0,0.00035616,7]
[364899248,1749286273494,-151.0,0.00035616,7]
[364899250,1749286273503,-151.0,0.00035616,7]
[364899251,1749286273512,-151.0,0.00035616,7]
[364899252,1749286273521,-151.0,0.00035616,7]
[364899254,1749286273531,-151.0,0.00035616,7]
[364899255,1749286273540,-480.0,0.00035616,30]
[364899257,1749286273550,-480.0,0.00035616,30]
[364899258,1749286273559,-480.0,0.00035616,30]
[364899259,1749286273570,-524.31049664,0.00035616,30]
[364899261,1749286273580,-151.0,0.00035616,7]
[364899262,1749286273593,-151.0,0.00035616,7]
[364899264,1749286273612,-151.0,0.00035616,7]
[364899266,1749286273629,-151.0,0.00035616,7]
[364899267,1749286273642,-151.0,0.00035616,7]
[364899269,1749286273659,-151.0,0.00035616,7]
[364899271,1749286273675,-151.0,0.00035616,7]
[364899273,1749286273693,-200.0,0.00035616,2]
[364899274,1749286273711,-151.0,0.00035616,7]
[364899276,1749286273725,-151.0,0.00035616,7]
[364899277,1749286273738,-151.0,0.00035616,7]
[364899279,1749286273756,-151.0,0.00035616,7]
[364899281,1749286273773,-151.0,0.00035616,7]
[364899283,1749286273789,-151.0,0.00035616,7]
[364899284,1749286273806,-151.0,0.00035616,7]
[364899286,1749286273821,-184.492524,0.00035616,7]
[364899288,1749286273841,-480.0,0.00035616,2]
[364899289,1749286273857,-480.0,0.00035616,2]
[364899291,1749286273873,-161.70695282,0.00035616,2]
[364899293,1749286273889,-794.82,0.00035616,2]
[364899295,1749286273906,-794.82,0.00035616,2]
[364899296,1749286273922,-794.82,0.00035616,2]
[364899298,1749286273937,-794.82,0.00035616,2]
[364899299,1749286273950,-794.82,0.00035616,2]
[364899301,1749286273965,-794.82,0.00035616,2]
[364899303,1749286273983,-794.82,0.00035616,2]
[364899304,1749286273995,-794.82,0.00035616,2]
[364899306,1749286274008,-794.82,0.00035616,2]
[364899307,1749286274025,-794.82,0.00035616,2]
[364899309,1749286274041,-794.82,0.00035616,2]
[364899311,1749286274054,-794.82,0.00035616,2]
[364899312,1749286274066,-794.82,0.00035616,2]
[364899314,1749286274083,-794.82,0.00035616,2]
[364899315,1749286274098,-794.82,0.00035616,2]
[364899316,1749286274112,-794.82,0.00035616,2]
[364899317,1749286274126,-794.82,0.00035616,2]
[364899318,1749286274141,-794.82,0.00035616,2]
[364899319,1749286274154,-794.82,0.00035616,2]
[364899320,1749286274169,-794.82,0.00035616,2]
[364899321,1749286274184,-794.82,0.00035616,2]
[364899322,1749286274197,-794.82,0.00035616,2]
[364899323,1749286274212,-794.82,0.00035616,2]
[364899324,1749286274225,-794.98,0.00035616,2]
[364899325,1749286274239,-480.0,0.00035616,7]
[364899326,1749286274253,-480.0,0.00035616,7]
[364899327,1749286274268,-480.0,0.00035616,7]
[364899328,1749286274283,-480.0,0.00035616,7]
[364899329,1749286274297,-480.0,0.00035616,7]
[364899331,1749286274311,-480.0,0.00035616,7]
[364899332,1749286274326,-491.0673233,0.00035616,7]
[364899334,1749286274340,-480.0,0.00035616,7]
[364899335,1749286274356,-480.0,0.00035616,7]
[364899337,1749286274371,-480.0,0.00035616,7]
[364899338,1749286274386,-480.0,0.00035616,7]
[364899340,1749286274400,-480.0,0.00035616,7]
[364899341,1749286274414,-480.0,0.00035616,7]
[364899343,1749286274427,-323.06782786,0.00035616,7]
[364899344,1749286274441,-480.0,0.00035616,10]
[364899346,1749286274455,-612.81113234,0.00035616,10]
[364899347,1749286274469,-600.0,0.00035616,2]
[364899349,1749286274484,-600.0,0.00035616,2]
[364899350,1749286274498,-600.0,0.00035616,2]
[364899352,1749286274513,-600.0,0.00035616,2]
[364899354,1749286274528,-307.41163561,0.00035616,2]
[364899355,1749286274542,-480.0,0.00035616,120]
[364899357,1749286274557,-480.0,0.00035616,120]
[364899358,1749286274571,-480.0,0.00035616,120]
[364899360,1749286274584,-480.0,0.00035616,120]
[364899361,1749286274599,-480.0,0.00035616,120]
[364899363,1749286274612,-480.0,0.00035616,120]
[364899364,1749286274626,-480.0,0.00035616,120]
[364899366,1749286274639,-488.07034629,0.00035616,120]
[364899367,1749286274653,-480.0,0.00035616,120]
[364899369,1749286274667,-480.0,0.00035616,120]
[364899371,1749286274682,-480.0,0.00035616,120]
[364899372,1749286274696,-200.0,0.00035616,2]
[364899374,1749286274709,-480.0,0.00035616,2]
[364899375,1749286274724,-480.0,0.00035616,2]
[364899377,1749286274738,-480.0,0.00035616,2]
[364899379,1749286274752,-480.0,0.00035616,2]
[364899380,1749286274766,-480.0,0.00035616,2]
[364899382,1749286274779,-480.0,0.00035616,2]
[364899383,1749286274793,-480.0,0.00035616,2]
[364899385,1749286274807,-480.0,0.00035616,2]
[364899387,1749286274820,-480.0,0.00035616,2]
[364899388,1749286274835,-582.54654786,0.00035616,2]
[364899390,1749286274848,-480.0,0.00035616,2]
[364899391,1749286274862,-540.08528522,0.00035616,2]
[364899393,1749286274876,-492.29958263,0.00035616,120]
[364899395,1749286274890,-480.0,0.00035616,120]
[364899396,1749286274903,-480.0,0.00035616,120]
[364899398,1749286274916,-480.0,0.00035616,120]
[364899399,1749286274930,-480.0,0.00035616,120]
[364899401,1749286274943,-480.0,0.00035616,120]
[364899402,1749286274957,-480.0,0.00035616,120]
[364899404,1749286274970,-480.0,0.00035616,120]
[364899405,1749286274985,-431.52,0.00035616,120]
[364899407,1749286274998,-480.0,0.00035616,120]
[364899409,1749286275013,-497.82781857,0.00035616,120]
[364899410,1749286275027,-486.09126929,0.00035616,120]
[364899412,1749286275040,-480.0,0.00035616,120]
[364899413,1749286275054,-480.0,0.00035616,120]
[364899415,1749286275067,-294.95826933,0.00035616,120]
[364899416,1749286275082,-426.30292083,0.00035616,7]
[364899418,1749286275095,-493.53946727,0.00035616,120]
[364899420,1749286275113,-222.34240529,0.00035616,120]
[364899421,1749286275127,-480.0,0.00035616,120]
[364899423,1749286275141,-387.15790097,0.00035616,120]
[364899425,1749286275155,-480.87981901,0.00035616,2]
[364899426,1749286275169,-484.65494655,0.00035616,120]
[364899428,1749286275183,-480.0,0.00035616,120]
[364899429,1749286275197,-474.07139219,0.00035616,120]
[364899431,1749286275211,-433.07089719,0.00035616,120]